[Event "SRB-chT Women 1st League 2019"]
[Site "Subotica"]
[Date "2019.08.27"]
[Round "6"]
[White "Belenkaya, Dina"]
[Black "Gajcin, Marina"]
[Result "1/2-1/2"]
[ECO "B31"]
[WhiteElo "2298"]
[BlackElo "2267"]
[Annotator "ChessBase"]
[PlyCount "159"]
[EventDate "2019.08.23"]
[EventType "team-tourn"]
[EventCountry "SRB"]
[SourceTitle "playchess.com"]
[Source "ChessBase"]
[SourceQuality "1"]
[TimeControl "40/5400+30:1800+30"]

1. e4 {[%emt 0:00:30]} c5 {[%emt 0:00:30]} 2. Nf3 {[%emt 0:00:00]} Nc6 {[%emt 0:00:00]} 3. Bb5 {[%emt 0:00:00]} g6 {[%emt 0:00:00]} 4. O-O {[%emt 0:00:30]} Bg7 {[%emt 0:00:00]} 5. d3 {[%emt 0:00:00]} e5 {[%emt 0:12:00]} 6. a3 {[%emt 0:02:00]} Nge7 {[%emt 0:03:30]} 7. b4 {[%emt 0:00:30]} b6 {[%emt 0:05:30]} 8. Bb2 {[%emt 0:07:30]} O-O {[%emt 0:01:30]} 9. Nc3 {[%emt 0:06:30]} Bb7 {[%emt 0:06:30]} 10. bxc5 {[%emt 0:02:30]} bxc5 {[%emt 0:01:30]} 11. Re1 {[%emt 0:03:30]} Rb8 {[%emt 0:06:30]} 12. Rb1 {[%emt 0:05:30]} Nd4 {[%emt 0:07:30]} 13. Bc4 {[%emt 0:05:30]} d6 {[%emt 0:03:30]} 14. Ba1 {[%emt 0:11:30]} Bc6 {[%emt 0:15:30]} 15. Rxb8 {[%emt 0:09:30]} Qxb8 {[%emt 0:00:30]} 16. Nd2 {[%emt 0:00:30]} Kh8 {[%emt 0:00:30]} 17. Nf1 {[%emt 0:01:30]} f5 {[%emt 0:01:30]} 18. f3 {[%emt 0:00:30]} f4 {[%emt 0:04:30]} 19. Qd2 {[%emt 0:12:30]} Qa8 {[%emt 0:05:30]} 20. Rb1 {[%emt 0:02:30]} Rb8 {[%emt 0:05:17]} 21. Rxb8+ {[%emt 0:06:30]} Qxb8 {[%emt 0:00:33]} 22. Nd5 {[%emt 0:00:30]} Nxd5 {[%emt 0:02:17]} 23. exd5 {[%emt 0:07:38]} Ba4 {[%emt 0:01:44]} 24. Bxd4 {[%emt 0:00:24]} cxd4 {[%emt 0:01:03]} 25. Qc1 {[%emt 0:02:54]} Bf6 {[%emt 0:01:12]} 26. Nd2 {[%emt 0:01:04]} Bd8 {[%emt 0:00:05]} 27. Bb3 {[%emt 0:00:54]} Be8 {[%emt 0:00:29]} 28. Qb1 {[%emt 0:01:08]} Kg7 {[%emt 0:02:26]} 29. Ba2 {[%emt 0:01:27]} Qxb1+ {[%emt 0:00:36]} 30. Bxb1 {[%emt 0:00:07]} Kf8 {[%emt 0:00:28]} 31. Ba2 {[%emt 0:01:32]} Ke7 {[%emt 0:01:18]} 32. Kf2 {[%emt 0:00:48]} Bb6 {[%emt 0:04:23]} 33. Bb3 {[%emt 0:00:15]} Bc5 {[%emt 0:01:33]} 34. a4 {[%emt 0:00:10]} Bb6 {[%emt 0:00:33]} 35. Ne4 {[%emt 0:00:30]} h6 {[%emt 0:01:43]} 36. h4 {[%emt 0:00:42]} Bd8 {[%emt 0:01:14]} 37. g3 {[%emt 0:00:53]} Kd7 {[%emt 0:00:58]} 38. Kg2 {[%emt 0:06:23]} Kc7 {[%emt 0:00:35]} 39. Nd2 {[%emt 0:01:48]} Bd7 {[%emt 0:01:58]} 40. Ne4 {[%emt 0:00:00]} Be7 {[%emt 0:00:00]} 41. a5 {[%emt 0:05:53]} Bb5 {[%emt 0:23:58]} 42. Bc4 {[%emt 0:01:30]} Ba4 {[%emt 0:00:16]} 43. c3 {[%emt 0:01:30]} Bd8 {[%emt 0:01:36]} 44. cxd4 {[%emt 0:08:03]} exd4 {[%emt 0:00:10]} 45. Kh3 {[%emt 0:02:32]} fxg3 {[%emt 0:01:18]} 46. Kxg3 {[%emt 0:00:12]} Kd7 {[%emt 0:00:24]} 47. a6 {[%emt 0:01:49]} Kc7 {[%emt 0:00:45]} 48. f4 {[%emt 0:01:56]} Bd7 {[%emt 0:00:45]} 49. Nf2 {[%emt 0:06:36]} Be7 {[%emt 0:02:26]} 50. Ng4 {[%emt 0:03:37]} h5 {[%emt 0:01:26]} 51. Nh6 {[%emt 0:00:07]} Kb6 {[%emt 0:01:24]} 52. f5 {[%emt 0:01:56]} Bf8 {[%emt 0:01:18]} 53. Ng8 {[%emt 0:00:28]} Bxf5 {[%emt 0:00:24]} 54. Kf4 {[%emt 0:00:03]} Kc7 {[%emt 0:03:04]} 55. Kg5 {[%emt 0:00:19]} Kd8 {[%emt 0:00:27]} 56. Kf6 {[%emt 0:00:11]} Ke8 {[%emt 0:00:51]} 57. Bb5+ {[%emt 0:00:16]} Kd8 {[%emt 0:00:18]} 58. Kf7 {[%emt 0:02:18]} g5 {[%emt 0:00:04]} 59. hxg5 {[%emt 0:00:08]} h4 {[%emt 0:00:25]} 60. Ba4 {[%emt 0:00:11]} Bxd3 {[%emt 0:01:09]} 61. Bd1 {[%emt 0:00:13]} h3 {[%emt 0:00:28]} 62. Bf3 {[%emt 0:01:07]} Be2 {[%emt 0:00:36]} 63. Bxe2 {[%emt 0:00:31]} h2 {[%emt 0:00:07]} 64. Bf3 {[%emt 0:00:05]} d3 {[%emt 0:00:00]} 65. Kxf8 {[%emt 0:00:13]} d2 {[%emt 0:00:01]} 66. g6 {[%emt 0:00:26]} d1=Q {[%emt 0:00:30]} 67. Bxd1 {[%emt 0:00:05]} h1=Q {[%emt 0:00:00]} 68. Bg4 {[%emt 0:01:17]} Qe4 {[%emt 0:02:06]} 69. Kf7 {[%emt 0:02:36]} Qxg4 {[%emt 0:01:13]} 70. Nf6 {[%emt 0:00:30]} Qc8 {[%emt 0:01:02]} 71. g7 {[%emt 0:00:11]} Qc7+ {[%emt 0:00:36]} 72. Kg6 {[%emt 0:00:40]} Qc2+ {[%emt 0:00:43]} 73. Kf7 {[%emt 0:00:40]} Qc7+ {[%emt 0:00:30]} 74. Kg6 {[%emt 0:00:38]} Qc2+ {[%emt 0:01:11]} 75. Kh6 {[%emt 0:01:36]} Qd2+ {[%emt 0:01:27]} 76. Kg6 {[%emt 0:00:54]} Qc2+ {[%emt 0:00:29]} 77. Kf7 {[%emt 0:00:30]} Qc7+ {[%emt 0:00:33]} 78. Kg6 {[%emt 0:00:09]} Qc2+ {[%emt 0:00:19]} 79. Kf7 {[%emt 0:00:30]} Qc7+ {[%emt 0:01:05]} 80. Kg6 {[%emt 0:00:38]} 1/2-1/2

[Event "SRB-chT Women 1st League 2019"]
[Site "Subotica"]
[Date "2019.08.27"]
[Round "6"]
[White "Chelushkina, Irina"]
[Black "Eric, Jovana"]
[Result "0-1"]
[ECO "B10"]
[WhiteElo "2275"]
[BlackElo "2270"]
[Annotator "NA"]
[PlyCount "102"]
[EventDate "2019.08.23"]
[EventType "team-tourn"]
[EventCountry "SRB"]
[SourceTitle "playchess.com"]
[Source "ChessBase"]
[SourceQuality "1"]
[TimeControl "40/5400+30:1800+30"]

1. g3 {[%emt 0:00:30]} d5 {[%emt 0:00:30]} 2. Bg2 {[%emt 0:00:30]} c6 {[%emt 0:00:30]} 3. d3 {[%emt 0:00:30]} Nf6 {[%emt 0:00:30]} 4. Nd2 {[%emt 0:00:30]} e5 {[%emt 0:00:30]} 5. e4 {[%emt 0:00:30]} Bd6 {[%emt 0:00:30]} 6. Ngf3 {[%emt 0:00:30]} O-O {[%emt 0:00:30]} 7. O-O {[%emt 0:00:30]} Nbd7 {[%emt 0:00:30]} 8. h3 {[%emt 0:00:30]} Re8 {[%emt 0:00:30]} 9. Re1 {[%emt 0:00:30]} Qc7 {[%emt 0:00:30]} 10. Nf1 {[%emt 0:00:30]} Nf8 {[%emt 0:00:30]} 11. Bg5 {[%emt 0:00:30]} dxe4 {[%emt 0:00:30]} 12. dxe4 {[%emt 0:00:30]} N6d7 {[%emt 0:00:30]} 13. N1d2 {[%emt 0:00:30]} Ne6 {[%emt 0:00:30]} 14. Nc4 {[%emt 0:00:30]} Bf8 {[%emt 0:00:30]} 15. Bd2 {[%emt 0:00:30]} f6 {[%emt 0:00:30]} 16. a4 {[%emt 0:00:30]} a5 {[%emt 0:00:30]} 17. Nh4 {[%emt 0:00:30]} b6 {[%emt 0:00:30]} 18. Bf1 {[%emt 0:00:30]} Ndc5 {[%emt 0:00:30]} 19. c3 {[%emt 0:00:30]} Bb7 {[%emt 0:00:30]} 20. Qc2 {[%emt 0:00:30]} Rad8 {[%emt 0:00:30]} 21. Be3 {[%emt 0:00:30]} Nd7 {[%emt 0:00:30]} 22. Red1 {[%emt 0:00:30]} g6 {[%emt 0:00:30]} 23. Rxd7 {[%emt 0:00:30]} Qxd7 {[%emt 0:00:30]} 24. Bxb6 {[%emt 0:00:30]} Ra8 {[%emt 0:00:30]} 25. Rd1 {[%emt 0:00:30]} Qf7 {[%emt 0:00:30]} 26. Bxa5 {[%emt 0:00:30]} Kh8 {[%emt 0:00:30]} 27. b4 {[%emt 0:00:30]} Ng5 {[%emt 0:00:30]} 28. Ne3 {[%emt 0:00:30]} Qe6 {[%emt 0:00:30]} 29. g4 {[%emt 0:00:30]} Ba6 {[%emt 0:00:30]} 30. Bg2 {[%emt 0:00:30]} Be7 {[%emt 0:00:30]} 31. c4 {[%emt 0:00:30]} Qc8 {[%emt 0:00:30]} 32. c5 {[%emt 0:00:30]} Ne6 {[%emt 0:00:30]} 33. Nf3 {[%emt 0:00:30]} Nf4 {[%emt 0:00:30]} 34. Bb6 {[%emt 0:00:30]} Be2 {[%emt 0:00:30]} 35. Rd2 {[%emt 0:00:30]} Bxf3 {[%emt 0:00:30]} 36. Bxf3 {[%emt 0:00:30]} Nxh3+ {[%emt 0:00:30]} 37. Kh2 {[%emt 0:00:30]} Ng5 {[%emt 0:00:30]} 38. Bg2 {[%emt 0:00:30]} Ne6 {[%emt 0:00:30]} 39. Qd1 {[%emt 0:00:30]} Nd4 {[%emt 0:00:30]} 40. Nc4 {[%emt 0:00:30]} Qe6 {[%emt 0:00:30]} 41. Na5 {[%emt 0:30:30]} f5 {[%emt 0:30:30]} 42. exf5 {[%emt 0:00:30]} gxf5 {[%emt 0:00:30]} 43. Rxd4 {[%emt 0:00:30]} exd4 {[%emt 0:00:30]} 44. Bxc6 {[%emt 0:00:30]} Qe5+ {[%emt 0:00:30]} 45. Kh1 {[%emt 0:00:30]} Bf6 {[%emt 0:00:30]} 46. g5 {[%emt 0:00:30]} Bxg5 {[%emt 0:00:30]} 47. Bxa8 {[%emt 0:00:30]} Rxa8 {[%emt 0:00:30]} 48. c6 {[%emt 0:00:30]} Qd5+ {[%emt 0:00:30]} 49. f3 {[%emt 0:00:30]} Bf6 {[%emt 0:00:30]} 50. Qb3 {[%emt 0:00:30]} Qe5 {[%emt 0:00:30]} 51. c7 {[%emt 0:00:30]} Re8 {[%emt 0:00:30]} 0-1

[Event "SRB-chT Women 1st League 2019"]
[Site "Subotica"]
[Date "2019.08.27"]
[Round "6"]
[White "Velikic, Adela"]
[Black "Stojanovic, Andjelija"]
[Result "1/2-1/2"]
[ECO "A41"]
[WhiteElo "2252"]
[BlackElo "2350"]
[Annotator "NA"]
[PlyCount "60"]
[EventDate "2019.08.23"]
[EventType "team-tourn"]
[EventCountry "SRB"]
[SourceTitle "playchess.com"]
[Source "ChessBase"]
[SourceQuality "1"]
[TimeControl "40/5400+30:1800+30"]

1. d4 {[%emt 0:00:30]} g6 {[%emt 0:01:30]} 2. c4 {[%emt 0:00:30]} Bg7 {[%emt 0:01:30]} 3. Nc3 {[%emt 0:00:30]} d6 {[%emt 0:01:30]} 4. Nf3 {[%emt 0:00:00]} e5 {[%emt 0:04:30]} 5. dxe5 {[%emt 0:00:00]} dxe5 {[%emt 0:00:30]} 6. Qxd8+ {[%emt 0:00:30]} Kxd8 {[%emt 0:00:30]} 7. g3 {[%emt 0:00:30]} c6 {[%emt 0:22:30]} 8. Bg2 {[%emt 0:05:30]} h6 {[%emt 0:12:30]} 9. O-O {[%emt 0:05:30]} Be6 {[%emt 0:05:30]} 10. Rd1+ {[%emt 0:03:30]} Kc7 {[%emt 0:08:30]} 11. Be3 {[%emt 0:19:30]} Nd7 {[%emt 0:13:30]} 12. Rac1 {[%emt 0:02:30]} Ne7 {[%emt 0:01:30]} 13. Nd5+ {[%emt 0:07:30]} Kd8 {[%emt 0:00:30]} 14. Nxe7 {[%emt 0:06:30]} Kxe7 {[%emt 0:00:30]} 15. Nd2 {[%emt 0:03:30]} f5 {[%emt 0:02:30]} 16. b4 {[%emt 0:06:30]} Nb6 {[%emt 0:03:02]} 17. b5 {[%emt 0:06:30]} e4 {[%emt 0:01:40]} 18. bxc6 {[%emt 0:09:30]} bxc6 {[%emt 0:00:01]} 19. Rb1 {[%emt 0:00:30]} Rhd8 {[%emt 0:03:05]} 20. f3 {[%emt 0:07:41]} Bd4 {[%emt 0:05:19]} 21. Nf1 {[%emt 0:04:53]} Bxe3+ {[%emt 0:03:32]} 22. Nxe3 {[%emt 0:00:03]} Rxd1+ {[%emt 0:00:50]} 23. Rxd1 {[%emt 0:00:07]} exf3 {[%emt 0:01:46]} 24. Bxf3 {[%emt 0:00:10]} Nxc4 {[%emt 0:00:17]} 25. Nxc4 {[%emt 0:07:10]} Bxc4 {[%emt 0:00:01]} 26. Rd4 {[%emt 0:02:13]} Bxa2 {[%emt 0:02:16]} 27. Bxc6 {[%emt 0:00:08]} Rc8 {[%emt 0:02:48]} 28. Rd7+ {[%emt 0:00:43]} Kf6 {[%emt 0:00:48]} 29. Rxa7 {[%emt 0:00:10]} Rxc6 {[%emt 0:00:45]} 30. Rxa2 {[%emt 0:00:06]} Rb6 {[%emt 0:00:16]} 1/2-1/2

[Event "SRB-chT Women 1st League 2019"]
[Site "Subotica"]
[Date "2019.08.27"]
[Round "6"]
[White "Prudnikova, Svetlana"]
[Black "Pihajlic, Amalija"]
[Result "1-0"]
[ECO "D06"]
[WhiteElo "2234"]
[BlackElo "1889"]
[Annotator "NA"]
[PlyCount "61"]
[EventDate "2019.08.23"]
[EventType "team-tourn"]
[EventCountry "SRB"]
[SourceTitle "playchess.com"]
[Source "ChessBase"]
[SourceQuality "1"]
[TimeControl "40/5400+30:1800+30"]

1. d4 {[%emt 0:00:30]} d5 {[%emt 0:00:30]} 2. c4 {[%emt 0:00:00]} Bf5 {[%emt 0:00:30]} 3. cxd5 {[%emt 0:00:00]} Qxd5 {[%emt 0:00:00]} 4. Nc3 {[%emt 0:00:30]} Qa5 {[%emt 0:00:00]} 5. Nf3 {[%emt 0:05:30]} c6 {[%emt 0:00:30]} 6. g3 {[%emt 0:03:30]} h6 {[%emt 0:00:30]} 7. Bg2 {[%emt 0:00:30]} Nf6 {[%emt 0:00:30]} 8. O-O {[%emt 0:00:30]} e6 {[%emt 0:00:30]} 9. Ne5 {[%emt 0:01:30]} Be7 {[%emt 0:02:30]} 10. e4 {[%emt 0:03:30]} Bh7 {[%emt 0:00:30]} 11. d5 {[%emt 0:15:30]} exd5 {[%emt 0:09:30]} 12. exd5 {[%emt 0:00:00]} Qc7 {[%emt 0:04:30]} 13. dxc6 {[%emt 0:32:00]} bxc6 {[%emt 0:00:30]} 14. Bf4 {[%emt 0:03:30]} Bd6 {[%emt 0:11:30]} 15. Nb5 {[%emt 0:12:18]} cxb5 {[%emt 0:00:30]} 16. Rc1 {[%emt 0:00:12]} Qd8 {[%emt 0:05:30]} 17. Nc6 {[%emt 0:08:34]} Nxc6 {[%emt 0:04:30]} 18. Bxc6+ {[%emt 0:01:16]} Kf8 {[%emt 0:00:30]} 19. Qxd6+ {[%emt 0:02:46]} Kg8 {[%emt 0:00:30]} 20. Bxa8 {[%emt 0:00:34]} Qxa8 {[%emt 0:00:30]} 21. Qb8+ {[%emt 0:00:16]} Qxb8 {[%emt 0:01:30]} 22. Bxb8 {[%emt 0:00:30]} Bf5 {[%emt 0:03:30]} 23. Bxa7 {[%emt 0:00:06]} Kh7 {[%emt 0:00:30]} 24. Bd4 {[%emt 0:00:37]} Ne4 {[%emt 0:01:30]} 25. f3 {[%emt 0:00:35]} Nd2 {[%emt 0:00:30]} 26. Rf2 {[%emt 0:00:12]} Nc4 {[%emt 0:00:30]} 27. b3 {[%emt 0:00:46]} Nd6 {[%emt 0:01:30]} 28. Be5 {[%emt 0:01:14]} Ne8 {[%emt 0:00:30]} 29. Rd2 {[%emt 0:00:19]} Nf6 {[%emt 0:00:30]} 30. Bxf6 {[%emt 0:00:24]} gxf6 {[%emt 0:00:30]} 31. Rc5 {[%emt 0:00:24]} 1-0

[Event "SRB-chT Women 1st League 2019"]
[Site "Subotica"]
[Date "2019.08.27"]
[Round "6"]
[White "Injac, Teodora"]
[Black "Gaponenko, Inna"]
[Result "1-0"]
[ECO "E97"]
[WhiteElo "2223"]
[BlackElo "2446"]
[Annotator "NA"]
[PlyCount "99"]
[EventDate "2019.08.23"]
[EventType "team-tourn"]
[EventCountry "SRB"]
[SourceTitle "playchess.com"]
[Source "ChessBase"]
[SourceQuality "1"]
[TimeControl "40/5400+30:1800+30"]

1. d4 {[%emt 0:00:30]} Nf6 {[%emt 0:00:30]} 2. Nf3 {[%emt 0:00:30]} g6 {[%emt 0:00:30]} 3. c4 {[%emt 0:00:30]} Bg7 {[%emt 0:00:30]} 4. Nc3 {[%emt 0:00:30]} O-O {[%emt 0:00:30]} 5. e4 {[%emt 0:00:30]} d6 {[%emt 0:00:00]} 6. Be2 {[%emt 0:00:30]} e5 {[%emt 0:00:00]} 7. O-O {[%emt 0:00:30]} Nc6 {[%emt 0:00:30]} 8. Be3 {[%emt 0:00:30]} Re8 {[%emt 0:02:30]} 9. dxe5 {[%emt 0:00:30]} dxe5 {[%emt 0:00:30]} 10. h3 {[%emt 0:00:30]} b6 {[%emt 0:08:30]} 11. c5 {[%emt 0:03:30]} Bb7 {[%emt 0:00:30]} 12. Bc4 {[%emt 0:09:30]} Qe7 {[%emt 0:35:30]} 13. Qa4 {[%emt 0:21:30]} Nd4 {[%emt 0:20:30]} 14. Nxe5 {[%emt 0:15:30]} b5 {[%emt 0:18:11]} 15. Nxb5 {[%emt 0:17:30]} Qxe5 {[%emt 0:00:07]} 16. Bxd4 {[%emt 0:09:27]} Qxe4 {[%emt 0:00:05]} 17. f3 {[%emt 0:00:01]} Qc6 {[%emt 0:08:23]} 18. Qb3 {[%emt 0:01:17]} Rf8 {[%emt 0:00:42]} 19. Bf2 {[%emt 0:01:38]} Bc8 {[%emt 0:00:53]} 20. Nd4 {[%emt 0:02:07]} Qxc5 {[%emt 0:00:15]} 21. Ne6 {[%emt 0:01:50]} Qe7 {[%emt 0:00:12]} 22. Nxf8 {[%emt 0:00:12]} Qxf8 {[%emt 0:00:11]} 23. Rac1 {[%emt 0:03:27]} Bd7 {[%emt 0:00:12]} 24. Qb7 {[%emt 0:01:25]} Rb8 {[%emt 0:01:34]} 25. Qxa7 {[%emt 0:01:58]} Bh6 {[%emt 0:00:33]} 26. Rcd1 {[%emt 0:00:52]} Bf5 {[%emt 0:00:35]} 27. Bb3 {[%emt 0:00:58]} Qc8 {[%emt 0:00:22]} 28. Rfe1 {[%emt 0:01:17]} Ra8 {[%emt 0:00:38]} 29. Qd4 {[%emt 0:01:24]} Bg7 {[%emt 0:00:20]} 30. Bh4 {[%emt 0:02:00]} Ne8 {[%emt 0:00:37]} 31. Qd8 {[%emt 0:00:56]} Qxd8 {[%emt 0:00:27]} 32. Rxd8 {[%emt 0:00:09]} Rxd8 {[%emt 0:00:12]} 33. Bxd8 {[%emt 0:00:04]} Kf8 {[%emt 0:00:47]} 34. Be7+ {[%emt 0:00:58]} Kg8 {[%emt 0:00:04]} 35. Bb4 {[%emt 0:00:34]} Bd4+ {[%emt 0:00:11]} 36. Kh2 {[%emt 0:00:21]} Ng7 {[%emt 0:00:26]} 37. g4 {[%emt 0:00:45]} Be6 {[%emt 0:00:21]} 38. Bc3 {[%emt 0:00:29]} Bxb3 {[%emt 0:00:51]} 39. axb3 {[%emt 0:00:19]} Bb6 {[%emt 0:00:13]} 40. Ra1 {[%emt 0:00:00]} f5 {[%emt 0:00:00]} 41. Ra8+ {[%emt 0:08:32]} Kf7 {[%emt 0:00:38]} 42. Rh8 {[%emt 0:02:30]} Ne8 {[%emt 0:02:30]} 43. Rxh7+ {[%emt 0:00:30]} Ke6 {[%emt 0:00:30]} 44. Rh6 {[%emt 0:02:30]} Kf7 {[%emt 0:00:30]} 45. gxf5 {[%emt 0:00:30]} gxf5 {[%emt 0:01:30]} 46. Be5 {[%emt 0:00:30]} Be3 {[%emt 0:01:30]} 47. Rc6 {[%emt 0:01:30]} Ke7 {[%emt 0:00:30]} 48. b4 {[%emt 0:00:30]} Kd7 {[%emt 0:00:30]} 49. b5 {[%emt 0:00:30]} Bg5 {[%emt 0:00:30]} 50. Kg3 {[%emt 0:00:30]} 1-0

[Event "SRB-chT Women 1st League 2019"]
[Site "Subotica"]
[Date "2019.08.27"]
[Round "6"]
[White "Kovacevic, Radmila"]
[Black "Drljevic, Ljilja"]
[Result "0-1"]
[ECO "B08"]
[WhiteElo "2117"]
[BlackElo "2162"]
[Annotator "NA"]
[PlyCount "108"]
[EventDate "2019.08.23"]
[EventType "team-tourn"]
[EventCountry "SRB"]
[SourceTitle "playchess.com"]
[Source "ChessBase"]
[SourceQuality "1"]
[TimeControl "40/5400+30:1800+30"]

1. e4 {[%emt 0:04:30]} d6 {[%emt 0:00:30]} 2. d4 {[%emt 0:00:30]} Nf6 {[%emt 0:00:00]} 3. Nc3 {[%emt 0:00:30]} g6 {[%emt 0:00:00]} 4. h3 {[%emt 0:00:30]} Bg7 {[%emt 0:00:30]} 5. Be3 {[%emt 0:00:30]} O-O {[%emt 0:00:30]} 6. Qd2 {[%emt 0:00:30]} c6 {[%emt 0:01:30]} 7. Nf3 {[%emt 0:02:30]} Nbd7 {[%emt 0:04:30]} 8. Bh6 {[%emt 0:05:30]} e5 {[%emt 0:01:30]} 9. Bxg7 {[%emt 0:05:30]} Kxg7 {[%emt 0:03:30]} 10. dxe5 {[%emt 0:00:30]} dxe5 {[%emt 0:00:30]} 11. Bd3 {[%emt 0:06:30]} Re8 {[%emt 0:16:30]} 12. Ne2 {[%emt 0:02:30]} Nc5 {[%emt 0:09:30]} 13. Ng3 {[%emt 0:06:30]} Qb6 {[%emt 0:14:30]} 14. O-O {[%emt 0:12:30]} Qxb2 {[%emt 0:01:30]} 15. a4 {[%emt 0:03:30]} Qb6 {[%emt 0:02:30]} 16. Qc3 {[%emt 0:06:30]} Ncd7 {[%emt 0:02:30]} 17. Nh4 {[%emt 0:08:30]} Qc5 {[%emt 0:03:30]} 18. Qd2 {[%emt 0:00:30]} Nf8 {[%emt 0:06:30]} 19. Qg5 {[%emt 0:00:30]} Ng8 {[%emt 0:01:30]} 20. Kh1 {[%emt 0:04:30]} Ne6 {[%emt 0:06:30]} 21. Nh5+ {[%emt 0:13:37]} Kh8 {[%emt 0:02:30]} 22. Qg3 {[%emt 0:00:12]} gxh5 {[%emt 0:02:59]} 23. Nf5 {[%emt 0:00:13]} Ne7 {[%emt 0:04:16]} 24. Qh4 {[%emt 0:04:11]} Ng7 {[%emt 0:02:14]} 25. f4 {[%emt 0:03:22]} Bxf5 {[%emt 0:03:04]} 26. exf5 {[%emt 0:00:31]} Nexf5 {[%emt 0:00:19]} 27. Bxf5 {[%emt 0:01:02]} Nxf5 {[%emt 0:00:22]} 28. Qf6+ {[%emt 0:00:09]} Ng7 {[%emt 0:00:04]} 29. fxe5 {[%emt 0:00:41]} Qxe5 {[%emt 0:05:47]} 30. Qxf7 {[%emt 0:00:12]} Qe7 {[%emt 0:00:29]} 31. Qb3 {[%emt 0:00:39]} Rf8 {[%emt 0:00:35]} 32. Rfe1 {[%emt 0:00:06]} Qf7 {[%emt 0:00:13]} 33. Qb2 {[%emt 0:01:30]} Rae8 {[%emt 0:00:13]} 34. Rf1 {[%emt 0:01:24]} Qe7 {[%emt 0:00:33]} 35. Rfe1 {[%emt 0:00:24]} Qxe1+ {[%emt 0:01:32]} 36. Rxe1 {[%emt 0:00:11]} Rxe1+ {[%emt 0:00:03]} 37. Kh2 {[%emt 0:00:00]} Re7 {[%emt 0:00:50]} 38. Qd4 {[%emt 0:00:58]} a6 {[%emt 0:00:22]} 39. a5 {[%emt 0:00:00]} Kg8 {[%emt 0:00:00]} 40. Qc4+ {[%emt 0:00:00]} Rff7 {[%emt 0:00:00]} 41. Qd3 {[%emt 0:04:08]} Rd7 {[%emt 0:04:05]} 42. Qg3 {[%emt 0:03:30]} Rf5 {[%emt 0:04:30]} 43. Qb3+ {[%emt 0:00:30]} Rfd5 {[%emt 0:01:30]} 44. Qb4 {[%emt 0:02:30]} Kf7 {[%emt 0:03:30]} 45. Qf4+ {[%emt 0:00:30]} Rf5 {[%emt 0:01:30]} 46. Qc4+ {[%emt 0:00:00]} Ne6 {[%emt 0:00:30]} 47. Qc3 {[%emt 0:02:00]} Rdd5 {[%emt 0:01:30]} 48. Qb2 {[%emt 0:00:30]} Rb5 {[%emt 0:00:00]} 49. Qh8 {[%emt 0:00:30]} Nf8 {[%emt 0:00:00]} 50. Qc3 {[%emt 0:00:30]} Ne6 {[%emt 0:03:30]} 51. Qh8 {[%emt 0:04:30]} Rxa5 {[%emt 0:00:00]} 52. Qxh7+ {[%emt 0:01:30]} Ng7 {[%emt 0:01:00]} 53. g4 {[%emt 0:00:30]} hxg4 {[%emt 0:00:30]} 54. hxg4 {[%emt 0:00:30]} Rh5+ 0-1

[Event "SRB-chT Women 1st League 2019"]
[Site "Subotica"]
[Date "2019.08.27"]
[Round "6"]
[White "Tomin, Ksenija"]
[Black "Grujic, Danijela"]
[Result "0-1"]
[ECO "B53"]
[WhiteElo "2041"]
[BlackElo "2033"]
[Annotator "NA"]
[PlyCount "52"]
[EventDate "2019.08.23"]
[EventType "team-tourn"]
[EventCountry "SRB"]
[SourceTitle "playchess.com"]
[Source "ChessBase"]
[SourceQuality "1"]
[TimeControl "40/5400+30:1800+30"]

1. e4 {[%emt 0:00:30]} c5 {[%emt 0:00:30]} 2. Nf3 {[%emt 0:00:00]} Nc6 {[%emt 0:00:30]} 3. Bb5 {[%emt 0:01:00]} d6 {[%emt 0:00:30]} 4. d4 {[%emt 0:01:30]} cxd4 {[%emt 0:00:30]} 5. Qxd4 {[%emt 0:03:30]} Bd7 {[%emt 0:00:30]} 6. Bxc6 {[%emt 0:00:30]} Bxc6 {[%emt 0:01:30]} 7. Nc3 {[%emt 0:01:30]} Nf6 {[%emt 0:00:30]} 8. Bg5 {[%emt 0:02:30]} e6 {[%emt 0:01:30]} 9. Qd3 {[%emt 0:04:30]} Be7 {[%emt 0:03:30]} 10. Nd4 {[%emt 0:08:30]} a6 {[%emt 0:06:30]} 11. O-O-O {[%emt 0:11:30]} O-O {[%emt 0:04:30]} 12. f4 {[%emt 0:01:30]} Qc7 {[%emt 0:02:30]} 13. h4 {[%emt 0:08:30]} b5 {[%emt 0:05:30]} 14. e5 {[%emt 0:08:30]} dxe5 {[%emt 0:08:30]} 15. Nxc6 {[%emt 0:06:30]} Qxc6 {[%emt 0:02:30]} 16. fxe5 {[%emt 0:00:30]} Rfd8 {[%emt 0:14:30]} 17. Qh3 {[%emt 0:07:30]} Rxd1+ {[%emt 0:04:30]} 18. Rxd1 {[%emt 0:02:30]} Nd5 {[%emt 0:02:30]} 19. Bxe7 {[%emt 0:04:30]} Nxe7 {[%emt 0:00:00]} 20. Rd6 {[%emt 0:07:11]} Qc4 {[%emt 0:07:00]} 21. Qf3 {[%emt 0:04:19]} Rc8 {[%emt 0:00:30]} 22. Rd7 {[%emt 0:02:15]} Nf5 {[%emt 0:05:30]} 23. Qb7 {[%emt 0:02:34]} b4 {[%emt 0:02:30]} 24. g4 {[%emt 0:00:26]} bxc3 {[%emt 0:01:30]} 25. gxf5 {[%emt 0:00:18]} Qf4+ {[%emt 0:02:30]} 26. Kd1 {[%emt 0:00:12]} Qf1# {[%emt 0:00:30]} 0-1